[Event "Titled Tuesday Blitz March 22 Early 2022"]
[White "Petrosyan, Manuel"]
[Black "Paravyan, David"]
[WhiteFideId "13300857"]
[BlackFideId "4194985"]
[WhiteElo "2592"]
[BlackElo "2569"]
[Result "1/2-1/2"]
[Round "10"]
[TimeControl "180+1"]
[Date "2022.03.22"]
[WhiteClock "0:00:16"]
[BlackClock "0:00:24"]

1. d4 {[%clk 0:03:00]}  Nf6 {[%clk 0:03:00]} 2. Nf3 {[%clk 0:03:00]}  g6 {[%clk 0:03:01]} 3. c4 {[%clk 0:03:00]}  Bg7 {[%clk 0:03:01]} 4. Nc3 {[%clk 0:02:59]}  d5 {[%clk 0:03:01]} 5. e3 {[%clk 0:02:58]}  O-O {[%clk 0:03:01]} 6. Bd2 {[%clk 0:02:59]}  e6 {[%clk 0:03:01]} 7. Rc1 {[%clk 0:02:59]}  Nbd7 {[%clk 0:03:01]} 8. Qb3 {[%clk 0:02:55]}  c6 {[%clk 0:02:58]} 9. a4 {[%clk 0:02:52]}  a6 {[%clk 0:02:45]} 10. Bd3 {[%clk 0:02:36]}  dxc4 {[%clk 0:02:45]} 11. Qxc4 {[%clk 0:02:37]}  Qe7 {[%clk 0:01:44]} 12. Ne4 {[%clk 0:02:22]}  Nd5 {[%clk 0:01:36]} 13. Nc5 {[%clk 0:02:15]}  Rd8 {[%clk 0:00:50]} 14. a5 {[%clk 0:02:03]}  Nxc5 {[%clk 0:00:39]} 15. Qxc5 {[%clk 0:02:03]}  Qxc5 {[%clk 0:00:40]} 16. Rxc5 {[%clk 0:02:03]}  e5 {[%clk 0:00:40]} 17. Nxe5 {[%clk 0:01:06]}  Bxe5 {[%clk 0:00:34]} 18. dxe5 {[%clk 0:01:07]}  Nxe3 {[%clk 0:00:26]} 19. Ke2 {[%clk 0:01:01]}  Bf5 {[%clk 0:00:20]} 20. Bxa6 {[%clk 0:00:50]}  bxa6 {[%clk 0:00:14]} 21. Bxe3 {[%clk 0:00:49]}  Rab8 {[%clk 0:00:14]} 22. Kf3 {[%clk 0:00:44]}  Rb4 {[%clk 0:00:08]} 23. h3 {[%clk 0:00:25]}  Be4+ {[%clk 0:00:07]} 24. Kg3 {[%clk 0:00:25]}  Rxb2 {[%clk 0:00:07]} 25. Rc4 {[%clk 0:00:21]}  Bd5 {[%clk 0:00:07]} 26. Rd1 {[%clk 0:00:21]}  Re8 {[%clk 0:00:07]} 27. Rc3 {[%clk 0:00:15]}  Rxe5 {[%clk 0:00:06]} 28. h4 {[%clk 0:00:07]}  f6 {[%clk 0:00:07]} 29. Bd4 {[%clk 0:00:06]}  Re6 {[%clk 0:00:07]} 30. Rxc6 {[%clk 0:00:04]}  Rb3+ {[%clk 0:00:05]} 31. Rc3 {[%clk 0:00:04]}  Rxc3+ {[%clk 0:00:03]} 32. Bxc3 {[%clk 0:00:05]}  Bc6 {[%clk 0:00:04]} 33. Rd8+ {[%clk 0:00:05]}  Kf7 {[%clk 0:00:05]} 34. Rc8 {[%clk 0:00:05]}  h5 {[%clk 0:00:05]} 35. Rc7+ {[%clk 0:00:05]}  Ke8 {[%clk 0:00:05]} 36. f3 {[%clk 0:00:04]}  Bb5 {[%clk 0:00:05]} 37. Rg7 {[%clk 0:00:03]}  Bd3 {[%clk 0:00:04]} 38. Bd4 {[%clk 0:00:03]}  Kf8 {[%clk 0:00:04]} 39. Rc7 {[%clk 0:00:03]}  Bb5 {[%clk 0:00:05]} 40. Bc5+ {[%clk 0:00:04]}  Kg8 {[%clk 0:00:05]} 41. Bd4 {[%clk 0:00:04]}  Kf8 {[%clk 0:00:06]} 42. Kf2 {[%clk 0:00:04]}  Kg8 {[%clk 0:00:06]} 43. Ra7 {[%clk 0:00:03]}  Kf8 {[%clk 0:00:06]} 44. Kg3 {[%clk 0:00:04]}  Kg8 {[%clk 0:00:07]} 45. Rb7 {[%clk 0:00:04]}  g5 {[%clk 0:00:07]} 46. hxg5 {[%clk 0:00:03]}  fxg5 {[%clk 0:00:08]} 47. Rg7+ {[%clk 0:00:04]}  Kf8 {[%clk 0:00:06]} 48. Rxg5 {[%clk 0:00:05]}  Bf1 {[%clk 0:00:03]} 49. Kf2 {[%clk 0:00:04]}  Bb5 {[%clk 0:00:03]} 50. Rxh5 {[%clk 0:00:04]}  Kf7 {[%clk 0:00:04]} 51. Rf5+ {[%clk 0:00:04]}  Kg6 {[%clk 0:00:04]} 52. Rf4 {[%clk 0:00:04]}  Rc6 {[%clk 0:00:04]} 53. Kg3 {[%clk 0:00:03]}  Rc2 {[%clk 0:00:05]} 54. Rg4+ {[%clk 0:00:04]}  Kf5 {[%clk 0:00:05]} 55. Rf4+ {[%clk 0:00:04]}  Ke6 {[%clk 0:00:06]} 56. Re4+ {[%clk 0:00:03]}  Kd5 {[%clk 0:00:06]} 57. Bf2 {[%clk 0:00:03]}  Ra2 {[%clk 0:00:06]} 58. Bb6 {[%clk 0:00:02]}  Bf1 {[%clk 0:00:07]} 59. Bf2 {[%clk 0:00:01]}  Rxa5 {[%clk 0:00:07]} 60. Re1 {[%clk 0:00:02]}  Bb5 {[%clk 0:00:07]} 61. Rd1+ {[%clk 0:00:02]}  Ke6 {[%clk 0:00:07]} 62. Rh1 {[%clk 0:00:03]}  Ra2 {[%clk 0:00:08]} 63. Rh6+ {[%clk 0:00:04]}  Kd5 {[%clk 0:00:08]} 64. Be3 {[%clk 0:00:03]}  a5 {[%clk 0:00:08]} 65. Kh3 {[%clk 0:00:03]}  Bf1 {[%clk 0:00:08]} 66. Rg6 {[%clk 0:00:03]}  a4 {[%clk 0:00:09]} 67. Bh6 {[%clk 0:00:03]}  a3 {[%clk 0:00:08]} 68. Bf8 {[%clk 0:00:04]}  Ra1 {[%clk 0:00:05]} 69. Rg5+ {[%clk 0:00:04]}  Kc4 {[%clk 0:00:04]} 70. Ra5 {[%clk 0:00:04]}  a2 {[%clk 0:00:05]} 71. Bg7 {[%clk 0:00:03]}  Kb4 {[%clk 0:00:04]} 72. Bxa1 {[%clk 0:00:02]}  Kxa5 {[%clk 0:00:04]} 73. Kg3 {[%clk 0:00:03]}  Kb4 {[%clk 0:00:05]} 74. Kf2 {[%clk 0:00:03]}  Bd3 {[%clk 0:00:05]} 75. g4 {[%clk 0:00:04]}  Bc2 {[%clk 0:00:05]} 76. Kg3 {[%clk 0:00:04]}  Bd1 {[%clk 0:00:05]} 77. f4 {[%clk 0:00:04]}  Kc5 {[%clk 0:00:05]} 78. f5 {[%clk 0:00:05]}  Kd6 {[%clk 0:00:05]} 79. Kf4 {[%clk 0:00:05]}  Ke7 {[%clk 0:00:05]} 80. g5 {[%clk 0:00:06]}  Bc2 {[%clk 0:00:02]} 81. g6 {[%clk 0:00:06]}  Bb1 {[%clk 0:00:02]} 82. Kg5 {[%clk 0:00:05]}  Bc2 {[%clk 0:00:02]} 83. f6+ {[%clk 0:00:05]}  Kf8 {[%clk 0:00:02]} 84. Bb2 {[%clk 0:00:04]}  Bb3 {[%clk 0:00:02]} 85. Kf4 {[%clk 0:00:04]}  Kg8 {[%clk 0:00:02]} 86. Ke5 {[%clk 0:00:04]}  Kf8 {[%clk 0:00:03]} 87. Kd6 {[%clk 0:00:04]}  Bc2 {[%clk 0:00:03]} 88. Ke6 {[%clk 0:00:02]}  Bxg6 {[%clk 0:00:04]} 89. Ke5 {[%clk 0:00:03]}  Kg8 {[%clk 0:00:04]} 90. Kd4 {[%clk 0:00:03]}  Kf7 {[%clk 0:00:05]} 91. Kc3 {[%clk 0:00:03]}  Kxf6 {[%clk 0:00:06]} 92. Ba1 {[%clk 0:00:03]}  Kf5 {[%clk 0:00:07]} 93. Kb2 {[%clk 0:00:04]}  Bf7 {[%clk 0:00:08]} 94. Kc1 {[%clk 0:00:04]}  Ke4 {[%clk 0:00:09]} 95. Bh8 {[%clk 0:00:04]}  Kd3 {[%clk 0:00:10]} 96. Kb2 {[%clk 0:00:04]}  Be6 {[%clk 0:00:10]} 97. Ka1 {[%clk 0:00:04]}  Kc4 {[%clk 0:00:11]} 98. Bg7 {[%clk 0:00:05]}  Kb5 {[%clk 0:00:12]} 99. Bh8 {[%clk 0:00:06]}  Kc6 {[%clk 0:00:12]} 100. Bg7 {[%clk 0:00:06]}  Kd5 {[%clk 0:00:13]} 101. Bh8 {[%clk 0:00:07]}  Ke4 {[%clk 0:00:14]} 102. Bg7 {[%clk 0:00:08]}  Kf5 {[%clk 0:00:15]} 103. Bh8 {[%clk 0:00:09]}  Kg4 {[%clk 0:00:16]} 104. Bb2 {[%clk 0:00:09]}  Kg5 {[%clk 0:00:17]} 105. Bc3 {[%clk 0:00:09]}  Kh6 {[%clk 0:00:17]} 106. Bb2 {[%clk 0:00:10]}  Kg6 {[%clk 0:00:18]} 107. Bc3 {[%clk 0:00:11]}  Kf5 {[%clk 0:00:19]} 108. Bb2 {[%clk 0:00:12]}  Ke4 {[%clk 0:00:20]} 109. Bc3 {[%clk 0:00:13]}  Kf3 {[%clk 0:00:21]} 110. Bb2 {[%clk 0:00:13]}  Ke3 {[%clk 0:00:21]} 111. Bc3 {[%clk 0:00:14]}  Ke2 {[%clk 0:00:22]} 112. Bb2 {[%clk 0:00:15]}  Kd3 {[%clk 0:00:23]} 113. Bc3 {[%clk 0:00:16]}  Kxc3 {[%clk 0:00:24]} 1/2-1/2


[Site "https://www.chess.com"]

[Event "Titled Tuesday Blitz March 22 Early 2022"]
[White "Piliczewski, Bogusz"]
[Black "Thomas, Anysia"]
[WhiteFideId "1104144"]
[BlackFideId "670472"]
[WhiteElo "1896"]
[BlackElo "2002"]
[Result "0-1"]
[Round "10"]
[TimeControl "180+1"]
[Date "2022.03.22"]
[WhiteClock "0:00:00"]
[BlackClock "0:00:20"]

1. d4 {[%clk 0:03:00]}  g6 {[%clk 0:02:59]} 2. Nf3 {[%clk 0:02:59]}  Bg7 {[%clk 0:02:59]} 3. Bf4 {[%clk 0:02:59]}  Nf6 {[%clk 0:03:00]} 4. e3 {[%clk 0:03:00]}  d5 {[%clk 0:03:00]} 5. h3 {[%clk 0:02:59]}  O-O {[%clk 0:03:00]} 6. Be2 {[%clk 0:03:00]}  c5 {[%clk 0:03:00]} 7. c3 {[%clk 0:02:58]}  Nc6 {[%clk 0:03:01]} 8. O-O {[%clk 0:02:57]}  b6 {[%clk 0:03:01]} 9. Nbd2 {[%clk 0:02:57]}  Bb7 {[%clk 0:03:01]} 10. Qb3 {[%clk 0:02:47]}  Ne4 {[%clk 0:02:44]} 11. Nxe4 {[%clk 0:02:41]}  dxe4 {[%clk 0:02:42]} 12. Nd2 {[%clk 0:02:29]}  e5 {[%clk 0:02:39]} 13. Bh2 {[%clk 0:02:18]}  exd4 {[%clk 0:02:35]} 14. Nxe4 {[%clk 0:02:17]}  d3 {[%clk 0:02:22]} 15. Bf3 {[%clk 0:02:09]}  Ne5 {[%clk 0:01:57]} 16. Bxe5 {[%clk 0:02:06]}  Bxe5 {[%clk 0:01:55]} 17. Rfd1 {[%clk 0:02:02]}  Rc8 {[%clk 0:01:21]} 18. Qc4 {[%clk 0:01:58]}  Qh4 {[%clk 0:01:03]} 19. Rxd3 {[%clk 0:01:40]}  b5 {[%clk 0:00:51]} 20. Qxb5 {[%clk 0:01:10]}  Bxe4 {[%clk 0:00:49]} 21. Bxe4 {[%clk 0:01:05]}  Qxe4 {[%clk 0:00:49]} 22. Rad1 {[%clk 0:01:01]}  Rb8 {[%clk 0:00:39]} 23. Qxc5 {[%clk 0:01:00]}  Bg7 {[%clk 0:00:35]} 24. b4 {[%clk 0:00:56]}  Rbc8 {[%clk 0:00:32]} 25. Qxa7 {[%clk 0:00:52]}  Bxc3 {[%clk 0:00:32]} 26. a3 {[%clk 0:00:46]}  Be5 {[%clk 0:00:31]} 27. Qb6 {[%clk 0:00:32]}  Qxd3 {[%clk 0:00:28]} 28. Rf1 {[%clk 0:00:16]}  Qe4 {[%clk 0:00:24]} 29. Qb5 {[%clk 0:00:13]}  Rfd8 {[%clk 0:00:23]} 30. a4 {[%clk 0:00:11]}  Bb8 {[%clk 0:00:22]} 31. a5 {[%clk 0:00:10]}  Qd5 {[%clk 0:00:20]} 32. Qxd5 {[%clk 0:00:09]}  Rxd5 {[%clk 0:00:20]} 33. Rb1 {[%clk 0:00:08]}  Rb5 {[%clk 0:00:20]} 34. Kf1 {[%clk 0:00:07]}  Ba7 {[%clk 0:00:20]} 35. Ke2 {[%clk 0:00:07]}  Rc4 {[%clk 0:00:20]} 36. Kd3 {[%clk 0:00:05]}  Rcxb4 {[%clk 0:00:21]} 37. Rc1 {[%clk 0:00:05]}  Rb3+ {[%clk 0:00:20]} 38. Ke2 {[%clk 0:00:04]}  Rxa5 {[%clk 0:00:20]} 39. Rc8+ {[%clk 0:00:00]}  Kg7 {[%clk 0:00:20]} 0-1


[Site "https://www.chess.com"]

[Event "Titled Tuesday Blitz March 22 Early 2022"]
[White "Prohorov, Olexandr"]
[Black "Kanyamarala, Trisha"]
[WhiteFideId "14105578"]
[BlackFideId "45004722"]
[WhiteElo "1993"]
[BlackElo "2047"]
[Result "1-0"]
[Round "10"]
[TimeControl "180+1"]
[Date "2022.03.22"]
[WhiteClock "0:00:29"]
[BlackClock "0:00:01"]

1. e4 {[%clk 0:02:59]}  c5 {[%clk 0:02:58]} 2. c3 {[%clk 0:02:59]}  Nf6 {[%clk 0:02:57]} 3. e5 {[%clk 0:02:59]}  Nd5 {[%clk 0:02:57]} 4. Nf3 {[%clk 0:03:00]}  d6 {[%clk 0:02:52]} 5. Bc4 {[%clk 0:03:00]}  e6 {[%clk 0:02:47]} 6. d4 {[%clk 0:02:59]}  cxd4 {[%clk 0:02:42]} 7. cxd4 {[%clk 0:02:59]}  Nc6 {[%clk 0:02:39]} 8. O-O {[%clk 0:02:59]}  Be7 {[%clk 0:02:39]} 9. Qe2 {[%clk 0:02:57]}  O-O {[%clk 0:02:37]} 10. Nc3 {[%clk 0:02:54]}  Nxc3 {[%clk 0:02:25]} 11. bxc3 {[%clk 0:02:54]}  dxe5 {[%clk 0:02:19]} 12. Nxe5 {[%clk 0:02:53]}  Bd7 {[%clk 0:02:13]} 13. Nxd7 {[%clk 0:02:42]}  Qxd7 {[%clk 0:02:13]} 14. Bd3 {[%clk 0:02:40]}  Rfe8 {[%clk 0:02:07]} 15. Rb1 {[%clk 0:02:38]}  Bf6 {[%clk 0:02:02]} 16. Qe4 {[%clk 0:02:35]}  g6 {[%clk 0:02:01]} 17. h4 {[%clk 0:02:36]}  Bg7 {[%clk 0:01:51]} 18. h5 {[%clk 0:02:32]}  Rab8 {[%clk 0:01:49]} 19. hxg6 {[%clk 0:02:32]}  hxg6 {[%clk 0:01:49]} 20. Qg4 {[%clk 0:02:31]}  Ne5 {[%clk 0:01:34]} 21. Qg3 {[%clk 0:02:11]}  Nxd3 {[%clk 0:01:32]} 22. Qxd3 {[%clk 0:02:12]}  e5 {[%clk 0:01:32]} 23. d5 {[%clk 0:02:11]}  e4 {[%clk 0:01:32]} 24. Qd2 {[%clk 0:01:39]}  b5 {[%clk 0:01:24]} 25. Rd1 {[%clk 0:01:31]}  Rbd8 {[%clk 0:01:20]} 26. Ba3 {[%clk 0:01:31]}  Re5 {[%clk 0:01:16]} 27. d6 {[%clk 0:01:29]}  Rh5 {[%clk 0:01:15]} 28. Qf4 {[%clk 0:01:25]}  Be5 {[%clk 0:00:38]} 29. Qxe4 {[%clk 0:01:22]}  Re8 {[%clk 0:00:35]} 30. Qf3 {[%clk 0:01:15]}  Bh2+ {[%clk 0:00:28]} 31. Kf1 {[%clk 0:01:15]}  Rhe5 {[%clk 0:00:17]} 32. Qh3 {[%clk 0:01:07]}  Qxh3 {[%clk 0:00:09]} 33. gxh3 {[%clk 0:01:08]}  Rd8 {[%clk 0:00:08]} 34. Kg2 {[%clk 0:01:01]}  Bf4 {[%clk 0:00:07]} 35. Rd4 {[%clk 0:01:02]}  Bg5 {[%clk 0:00:05]} 36. Rbd1 {[%clk 0:01:02]}  Bf6 {[%clk 0:00:04]} 37. d7 {[%clk 0:00:56]}  Rg5+ {[%clk 0:00:04]} 38. Rg4 {[%clk 0:00:53]}  Rxg4+ {[%clk 0:00:04]} 39. hxg4 {[%clk 0:00:53]}  Kg7 {[%clk 0:00:04]} 40. f4 {[%clk 0:00:53]}  g5 {[%clk 0:00:04]} 41. Kf3 {[%clk 0:00:52]}  gxf4 {[%clk 0:00:02]} 42. Kxf4 {[%clk 0:00:53]}  Kg6 {[%clk 0:00:03]} 43. Rd6 {[%clk 0:00:50]}  Kg7 {[%clk 0:00:01]} 44. g5 {[%clk 0:00:49]}  Bxc3 {[%clk 0:00:01]} 45. Rd5 {[%clk 0:00:50]}  b4 {[%clk 0:00:02]} 46. Bc1 {[%clk 0:00:49]}  Kf8 {[%clk 0:00:02]} 47. Kf5 {[%clk 0:00:35]}  Ke7 {[%clk 0:00:02]} 48. g6 {[%clk 0:00:35]}  fxg6+ {[%clk 0:00:02]} 49. Kxg6 {[%clk 0:00:34]}  Rxd7 {[%clk 0:00:03]} 50. Bg5+ {[%clk 0:00:31]}  Ke6 {[%clk 0:00:03]} 51. Ra5 {[%clk 0:00:30]}  Rb7 {[%clk 0:00:01]} 52. Ra6+ {[%clk 0:00:29]}  Kd5 {[%clk 0:00:01]} 53. Kf5 {[%clk 0:00:29]}  Kc4 {[%clk 0:00:01]} 54. Ke4 {[%clk 0:00:29]} 1-0


[Site "https://www.chess.com"]

[Event "Titled Tuesday Blitz March 22 Early 2022"]
[White "Przybylski, Wojciech"]
[Black "Atakhan, Abtin"]
[WhiteFideId "1117599"]
[BlackFideId "22502203"]
[WhiteElo "2133"]
[BlackElo "2119"]
[Result "0-1"]
[Round "10"]
[TimeControl "180+1"]
[Date "2022.03.22"]
[WhiteClock "0:00:10"]
[BlackClock "0:00:11"]

1. e4 {[%clk 0:02:59]}  c5 {[%clk 0:03:00]} 2. Nf3 {[%clk 0:02:58]}  Nc6 {[%clk 0:02:59]} 3. Bb5 {[%clk 0:02:57]}  g6 {[%clk 0:02:59]} 4. O-O {[%clk 0:02:57]}  Bg7 {[%clk 0:02:59]} 5. c3 {[%clk 0:02:57]}  Nf6 {[%clk 0:02:55]} 6. Qe2 {[%clk 0:02:57]}  O-O {[%clk 0:02:52]} 7. Rd1 {[%clk 0:02:57]}  d6 {[%clk 0:02:37]} 8. h3 {[%clk 0:02:56]}  Qb6 {[%clk 0:02:33]} 9. Ba4 {[%clk 0:02:52]}  Bd7 {[%clk 0:02:26]} 10. Bc2 {[%clk 0:02:43]}  Rac8 {[%clk 0:02:20]} 11. d3 {[%clk 0:02:41]}  Qc7 {[%clk 0:02:16]} 12. Bg5 {[%clk 0:02:36]}  h6 {[%clk 0:02:15]} 13. Bh4 {[%clk 0:02:30]}  Nh5 {[%clk 0:02:13]} 14. Nbd2 {[%clk 0:02:21]}  g5 {[%clk 0:02:06]} 15. Bg3 {[%clk 0:02:11]}  Nxg3 {[%clk 0:01:56]} 16. fxg3 {[%clk 0:02:12]}  Ne5 {[%clk 0:01:53]} 17. g4 {[%clk 0:02:05]}  Ng6 {[%clk 0:01:53]} 18. Nf1 {[%clk 0:02:02]}  b5 {[%clk 0:01:44]} 19. Ng3 {[%clk 0:01:53]}  b4 {[%clk 0:01:44]} 20. Nf5 {[%clk 0:01:44]}  bxc3 {[%clk 0:01:43]} 21. Nxg7 {[%clk 0:01:38]}  cxb2 {[%clk 0:01:43]} 22. Rab1 {[%clk 0:01:38]}  Kxg7 {[%clk 0:01:42]} 23. Rxb2 {[%clk 0:01:34]}  f6 {[%clk 0:01:42]} 24. Bb3 {[%clk 0:01:30]}  Rb8 {[%clk 0:01:37]} 25. d4 {[%clk 0:01:24]}  c4 {[%clk 0:01:34]} 26. Rc2 {[%clk 0:01:18]}  c3 {[%clk 0:01:14]} 27. Qe3 {[%clk 0:01:00]}  Rfc8 {[%clk 0:01:11]} 28. Rdc1 {[%clk 0:00:59]}  Qb6 {[%clk 0:00:59]} 29. Rxc3 {[%clk 0:00:57]}  Rxc3 {[%clk 0:00:59]} 30. Rxc3 {[%clk 0:00:56]}  Rc8 {[%clk 0:00:59]} 31. Kh2 {[%clk 0:00:52]}  Rc7 {[%clk 0:00:56]} 32. Qc1 {[%clk 0:00:46]}  Rxc3 {[%clk 0:00:54]} 33. Qxc3 {[%clk 0:00:46]}  Qc6 {[%clk 0:00:48]} 34. Qe3 {[%clk 0:00:38]}  a5 {[%clk 0:00:36]} 35. e5 {[%clk 0:00:34]}  dxe5 {[%clk 0:00:37]} 36. dxe5 {[%clk 0:00:34]}  Nxe5 {[%clk 0:00:29]} 37. Nxe5 {[%clk 0:00:33]}  Qc7 {[%clk 0:00:28]} 38. Kg3 {[%clk 0:00:31]}  a4 {[%clk 0:00:23]} 39. Bd5 {[%clk 0:00:24]}  fxe5 {[%clk 0:00:19]} 40. Kf2 {[%clk 0:00:20]}  Qc2+ {[%clk 0:00:18]} 41. Kg1 {[%clk 0:00:20]}  Qd1+ {[%clk 0:00:17]} 42. Kh2 {[%clk 0:00:19]}  Qxd5 {[%clk 0:00:18]} 43. Qa7 {[%clk 0:00:15]}  Qd6 {[%clk 0:00:16]} 44. Kg3 {[%clk 0:00:10]}  e4+ {[%clk 0:00:14]} 45. Kf2 {[%clk 0:00:10]}  Qd2+ {[%clk 0:00:13]} 46. Kg1 {[%clk 0:00:10]}  e3 {[%clk 0:00:11]} 47. Qc5 {[%clk 0:00:10]}  Qd1+ {[%clk 0:00:09]} 48. Kh2 {[%clk 0:00:09]}  Qd6+ {[%clk 0:00:10]} 49. Qxd6 {[%clk 0:00:09]}  exd6 {[%clk 0:00:11]} 50. Kg1 {[%clk 0:00:10]}  a3 {[%clk 0:00:11]} 51. Kf1 {[%clk 0:00:10]}  Be6 {[%clk 0:00:11]} 52. Ke2 {[%clk 0:00:10]}  Bxa2 {[%clk 0:00:12]} 53. Kxe3 {[%clk 0:00:10]}  Bd5 {[%clk 0:00:12]} 54. Kf2 {[%clk 0:00:10]}  a2 {[%clk 0:00:12]} 55. Kg3 {[%clk 0:00:10]}  a1=Q {[%clk 0:00:12]} 56. h4 {[%clk 0:00:10]}  Qe5+ {[%clk 0:00:11]} 0-1


[Site "https://www.chess.com"]

[Event "Titled Tuesday Blitz March 22 Early 2022"]
[White "Sadovsky, Artem"]
[Black "Dwilewicz, Katarzyna"]
[WhiteFideId "4155840"]
[BlackFideId "1148486"]
[WhiteElo "2314"]
[BlackElo "1907"]
[Result "0-1"]
[Round "10"]
[TimeControl "180+1"]
[Date "2022.03.22"]
[WhiteClock "0:01:39"]
[BlackClock "0:02:02"]

1. Nf3 {[%clk 0:03:00]}  b6 {[%clk 0:02:59]} 2. e3 {[%clk 0:03:01]}  Bb7 {[%clk 0:02:59]} 3. c4 {[%clk 0:03:00]}  c5 {[%clk 0:02:58]} 4. Be2 {[%clk 0:03:01]}  g6 {[%clk 0:02:58]} 5. O-O {[%clk 0:03:00]}  Bg7 {[%clk 0:02:58]} 6. Nc3 {[%clk 0:02:58]}  e6 {[%clk 0:02:59]} 7. d4 {[%clk 0:02:58]}  cxd4 {[%clk 0:02:58]} 8. exd4 {[%clk 0:02:58]}  Ne7 {[%clk 0:02:59]} 9. Be3 {[%clk 0:02:56]}  O-O {[%clk 0:03:00]} 10. Qd2 {[%clk 0:02:54]}  d6 {[%clk 0:03:00]} 11. Rfd1 {[%clk 0:02:53]}  Nd7 {[%clk 0:02:59]} 12. Rac1 {[%clk 0:02:53]}  Rc8 {[%clk 0:02:57]} 13. Bh6 {[%clk 0:02:52]}  Nf5 {[%clk 0:02:47]} 14. Bxg7 {[%clk 0:02:52]}  Kxg7 {[%clk 0:02:48]} 15. b3 {[%clk 0:02:49]}  Qf6 {[%clk 0:02:45]} 16. Qf4 {[%clk 0:02:44]}  Qe7 {[%clk 0:02:27]} 17. h4 {[%clk 0:02:30]}  a6 {[%clk 0:02:25]} 18. h5 {[%clk 0:02:28]}  Nf6 {[%clk 0:02:22]} 19. hxg6 {[%clk 0:02:22]}  hxg6 {[%clk 0:02:21]} 20. Ng5 {[%clk 0:02:09]}  Rh8 {[%clk 0:02:21]} 21. Nf3 {[%clk 0:02:01]}  Rh7 {[%clk 0:02:14]} 22. Kf1 {[%clk 0:01:57]}  Rh1+ {[%clk 0:02:12]} 23. Ng1 {[%clk 0:01:55]}  Rch8 {[%clk 0:02:07]} 24. f3 {[%clk 0:01:48]}  Nh5 {[%clk 0:02:02]} 25. Kf2 {[%clk 0:01:39]} 0-1


[Site "https://www.chess.com"]

[Event "Titled Tuesday Blitz March 22 Early 2022"]
[White "Saldano Dayer, Horacio"]
[Black "Topalov, Aleksandar"]
[WhiteFideId "103411"]
[BlackFideId "925659"]
[WhiteElo "2419"]
[BlackElo "2158"]
[Result "1-0"]
[Round "10"]
[TimeControl "180+1"]
[Date "2022.03.22"]
[WhiteClock "0:00:04"]
[BlackClock "0:00:01"]

1. e4 {[%clk 0:03:00]}  e6 {[%clk 0:02:01]} 2. d4 {[%clk 0:03:00]}  d5 {[%clk 0:02:01]} 3. Nd2 {[%clk 0:02:58]}  Nf6 {[%clk 0:01:59]} 4. e5 {[%clk 0:02:58]}  Ng8 {[%clk 0:02:00]} 5. Bd3 {[%clk 0:02:58]}  Ne7 {[%clk 0:02:00]} 6. Ndf3 {[%clk 0:02:53]}  Qd7 {[%clk 0:02:00]} 7. Ne2 {[%clk 0:02:49]}  b6 {[%clk 0:02:01]} 8. Nf4 {[%clk 0:02:44]}  Ba6 {[%clk 0:02:00]} 9. Nh5 {[%clk 0:02:34]}  Bxd3 {[%clk 0:01:59]} 10. Qxd3 {[%clk 0:02:35]}  Nbc6 {[%clk 0:01:53]} 11. Bd2 {[%clk 0:02:32]}  Ng8 {[%clk 0:01:51]} 12. a4 {[%clk 0:02:26]}  g6 {[%clk 0:01:51]} 13. Nf4 {[%clk 0:02:25]}  h5 {[%clk 0:01:33]} 14. c3 {[%clk 0:02:16]}  Nh6 {[%clk 0:01:32]} 15. Nh3 {[%clk 0:01:54]}  Na5 {[%clk 0:01:32]} 16. Nhg5 {[%clk 0:01:51]}  Nf5 {[%clk 0:01:30]} 17. O-O {[%clk 0:01:42]}  Nc4 {[%clk 0:01:29]} 18. Bc1 {[%clk 0:01:41]}  Be7 {[%clk 0:01:28]} 19. h4 {[%clk 0:01:39]}  Kf8 {[%clk 0:01:27]} 20. g3 {[%clk 0:01:39]}  Kg7 {[%clk 0:01:27]} 21. Kg2 {[%clk 0:01:38]}  c5 {[%clk 0:01:26]} 22. Nh3 {[%clk 0:01:37]}  Rac8 {[%clk 0:01:20]} 23. b3 {[%clk 0:01:37]}  Na5 {[%clk 0:01:20]} 24. Rb1 {[%clk 0:01:36]}  c4 {[%clk 0:01:18]} 25. bxc4 {[%clk 0:01:36]}  Nxc4 {[%clk 0:01:17]} 26. Bg5 {[%clk 0:01:34]}  Bxg5 {[%clk 0:01:12]} 27. Nhxg5 {[%clk 0:01:33]}  Qxa4 {[%clk 0:01:12]} 28. Ng1 {[%clk 0:01:13]}  Qd7 {[%clk 0:01:10]} 29. N1h3 {[%clk 0:01:13]}  a5 {[%clk 0:01:07]} 30. Nf4 {[%clk 0:01:11]}  a4 {[%clk 0:01:04]} 31. Rb4 {[%clk 0:01:09]}  a3 {[%clk 0:01:05]} 32. Ra1 {[%clk 0:01:08]}  Ra8 {[%clk 0:01:05]} 33. Qf3 {[%clk 0:00:41]}  Ra7 {[%clk 0:00:52]} 34. Qe2 {[%clk 0:00:31]}  Qe7 {[%clk 0:00:35]} 35. Ra2 {[%clk 0:00:27]}  Nxd4 {[%clk 0:00:20]} 36. cxd4 {[%clk 0:00:14]}  Qxb4 {[%clk 0:00:19]} 37. Ngxe6+ {[%clk 0:00:14]}  fxe6 {[%clk 0:00:20]} 38. Nxe6+ {[%clk 0:00:15]}  Kf7 {[%clk 0:00:20]} 39. Ng5+ {[%clk 0:00:15]}  Kg7 {[%clk 0:00:20]} 40. Qf3 {[%clk 0:00:14]}  Qe7 {[%clk 0:00:19]} 41. Qxd5 {[%clk 0:00:13]}  Rc7 {[%clk 0:00:16]} 42. Ne6+ {[%clk 0:00:11]}  Kh7 {[%clk 0:00:16]} 43. Nxc7 {[%clk 0:00:10]}  Qxc7 {[%clk 0:00:16]} 44. Rc2 {[%clk 0:00:10]}  Rc8 {[%clk 0:00:16]} 45. Qe4 {[%clk 0:00:08]}  b5 {[%clk 0:00:12]} 46. d5 {[%clk 0:00:08]}  b4 {[%clk 0:00:07]} 47. d6 {[%clk 0:00:08]}  Qc5 {[%clk 0:00:07]} 48. d7 {[%clk 0:00:07]}  Rd8 {[%clk 0:00:04]} 49. Rxc4 {[%clk 0:00:06]}  Qe7 {[%clk 0:00:04]} 50. e6 {[%clk 0:00:06]}  a2 {[%clk 0:00:04]} 51. Rc1 {[%clk 0:00:06]}  b3 {[%clk 0:00:03]} 52. Qe5 {[%clk 0:00:06]}  Qb4 {[%clk 0:00:01]} 53. e7 {[%clk 0:00:04]}  b2 {[%clk 0:00:01]} 54. exd8=Q {[%clk 0:00:04]} 1-0


[Site "https://www.chess.com"]